bitfinex/quotes_ETHUSD_20250923
["timestamp","ask_amount","ask_price","bid_price","bid_amount"]
[1758646416589,0.12424269,4213.8,4213.5,0.02373323]
[1758646416788,2.056,4214.4,4213.6,0.6963]
[1758646416989,2.056,4214.4,4213.8,14.5]
[1758646417188,0.3622,4215.6,4213.8,14.5]
[1758646417392,0.3622,4215.6,4213.8,17.56945487]
[1758646417393,4.365,4214.9,4213.8,17.56945487]
[1758646417790,0.02,4214.9,4213.8,17.56945487]
[1758646418397,0.02,4214.9,4213.8,24.0805006]
[1758646418687,0.02,4214.9,4213.8,24.1989006]
[1758646418875,0.02,4214.9,4213.8,21.70734573]
[1758646419063,0.02,4214.9,4213.8,24.0805006]
[1758646420708,1e-08,4213.9,4213.8,24.8725006]
[1758646420863,1e-08,4213.9,4213.8,24.0805006]
[1758646421911,1e-08,4213.9,4213.8,16.87315487]
[1758646422074,1e-08,4213.9,4213.8,14.5]
[1758646423500,0.38320001,4213.9,4213.8,14.5]
[1758646423698,1e-08,4213.9,4213.8,14.5]
[1758646425510,2.37309856,4213.9,4213.8,14.5]
[1758646425671,6.44770858,4213.9,4213.8,14.5]
[1758646426005,4.07461003,4213.9,4213.8,14.5]
[1758646426223,5.75629856,4213.9,4213.8,14.5]
[1758646426424,3.0,4213.8,4211.9,0.2255]
[1758646426591,3.0,4213.0,4211.9,2.37417901]
[1758646426792,3.0,4213.0,4211.8,2.089]
[1758646427013,3.0,4213.0,4212.5,14.5]
[1758646427615,2.37377442,4212.8,4212.5,14.5]
[1758646427922,3.0,4213.0,4212.5,14.5]
[1758646428119,3.0,4213.2,4212.5,14.5]
[1758646428340,3.0,4213.3,4212.6,0.0237383]
[1758646428490,3.0,4213.3,4212.5,14.5]
[1758646428889,3.0,4213.3,4212.9,0.1184]
[1758646429196,2.37349283,4213.2,4212.9,0.1184]
[1758646429405,4.329,4213.1,4212.9,0.1184]
[1758646429590,5.3736055,4213.0,4212.9,0.1184]
[1758646430016,6.84383648,4213.0,4212.9,0.1184]
[1758646430216,2.37383088,4212.6,4212.5,14.5]
[1758646430541,5.75703088,4212.6,4212.5,14.5]
[1758646431351,5.75703088,4212.6,4211.1,4.5725]
[1758646431352,2.37439476,4211.6,4211.1,0.02]
[1758646431631,4.325,4211.5,4211.3,0.1184]
[1758646431819,5.37450728,4211.4,4211.3,0.1184]
[1758646432018,6.58189951,4211.4,4211.1,0.02]
[1758646432217,2.37462006,4211.2,4211.1,0.02]
[1758646432410,5.37462006,4211.2,4211.1,14.52]
[1758646432610,5.75782006,4211.2,4211.1,14.52]
[1758646432803,5.75782006,4211.2,4211.1,0.02]
[1758646433124,5.75782006,4211.2,4207.8,2.37648454]
[1758646433125,2.37512766,4210.3,4210.2,0.1184]
[1758646433323,9.69912766,4210.3,4210.2,14.6184]
[1758646433627,9.69912766,4210.3,4209.1,0.7087]
[1758646433628,5.37518407,4210.2,4209.1,0.02]
[1758646433821,5.37518407,4210.2,4209.7,0.1184]
[1758646434024,5.37518407,4210.2,4210.1,14.52]
[1758646434025,2.37518407,4210.2,4210.1,14.52]
[1758646434238,11.75318407,4210.2,4210.1,14.52]
[1758646434842,12.66693248,4210.2,4210.1,14.52]
[1758646435023,12.66693248,4210.2,4210.1,0.02]
[1758646435024,33.36207249,4210.2,4210.1,0.02]
[1758646435329,34.15407249,4210.2,4210.1,0.02]
[1758646435626,34.15007249,4210.2,4210.1,0.02]
[1758646436044,34.15007249,4210.2,4209.1,0.02]
[1758646436045,2.37574836,4209.2,4209.1,0.02]
[1758646436207,13.99097934,4209.2,4209.1,0.02]
[1758646436408,14.37717934,4209.2,4209.1,0.02]
[1758646436836,7.20817934,4209.2,4209.1,0.02]
[1758646437135,13.20197934,4209.2,4209.1,0.02]
[1758646438030,14.37717934,4209.2,4209.1,0.02]
[1758646438228,3.16786124,4209.0,4208.1,0.024]
[1758646438395,0.1184,4209.1,4208.1,0.024]
[1758646438396,0.792,4208.8,4208.1,0.024]
[1758646438590,2.37624573,4208.4,4208.1,0.024]
[1758646438825,3.0,4208.2,4208.1,0.024]
[1758646439413,0.1184,4208.4,4208.1,0.024]
[1758646439627,2.49461156,4208.4,4208.1,0.024]
[1758646439930,5.37631291,4208.2,4208.1,0.024]
[1758646440126,3.0,4208.2,4208.1,0.024]
[1758646440330,3.0,4209.1,4208.1,0.024]
[1758646440633,3.0,4208.9,4208.2,14.5]
[1758646440932,2.37621224,4208.4,4208.2,14.5]
[1758646441168,9.69825644,4208.3,4208.2,14.5]
[1758646441367,3.0,4208.2,4208.1,0.024]
[1758646441532,7.43131291,4208.2,4208.1,0.024]
[1758646441860,8.84436697,4208.2,4208.1,0.024]
[1758646442066,7.43131291,4208.2,4208.1,0.024]
[1758646442266,6.16836938,4208.1,4207.6,0.004]
[1758646442465,5.37659528,4207.7,4207.6,0.004]
[1758646442642,9.69759528,4207.7,4207.6,0.004]
[1758646443397,3.0,4207.7,4207.6,0.004]
[1758646443598,9.375,4207.7,4207.6,0.2295]
[1758646443781,9.375,4207.7,4207.6,0.004]
[1758646443941,9.375,4207.7,4202.2,1.15855218]
[1758646444139,25.68994819,4205.2,4204.7,0.004]
[1758646444335,2.37823439,4204.8,4204.7,0.004]
[1758646444561,5.40200261,4204.8,4204.7,0.004]
[1758646444767,11.87123439,4204.8,4204.7,0.004]
[1758646444969,3.0,4204.8,4204.7,0.004]
[1758646445236,11.87123439,4204.8,4204.7,0.004]
[1758646445456,12.56383439,4204.8,4204.7,0.004]
[1758646446173,6.424,4206.0,4204.7,0.004]
[1758646446174,3.0,4205.5,4204.7,0.6927]
[1758646446373,7.44,4205.4,4204.8,0.2255]
[1758646446667,3.0,4205.7,4204.9,0.02378177]
[1758646446872,3.0,4205.5,4204.9,0.4632]
[1758646447044,0.02376822,4205.4,4204.7,0.004]
[1758646447244,3.0,4205.2,4205.0,14.7255]
[1758646447443,3.0,4205.3,4205.1,0.6887]
[1758646447742,3.0,4205.3,4205.0,16.01927]
[1758646447743,3.0,4205.3,4205.0,14.5]
[1758646448143,3.0,4205.3,4205.0,14.7255]
[1758646448371,3.0,4205.3,4205.1,0.2255]
[1758646448762,3.0,4205.5,4205.2,0.6887]
[1758646448946,3.0,4205.5,4205.3,0.6887]
[1758646449297,3.0,4205.5,4205.4,14.5]
[1758646449500,3.0,4205.8,4205.4,15.1887]
[1758646449784,3.0,4205.8,4205.5,0.6887]
[1758646449987,3.0,4205.8,4205.6,0.2255]
[1758646450355,2.37773563,4205.7,4205.2,0.2255]
[1758646450551,2.37739068,4206.3,4205.7,0.1184]
[1758646450849,2.37766893,4205.8,4205.7,0.1184]
[1758646451164,6.81366893,4205.8,4205.7,0.1184]
[1758646451482,6.81366893,4205.8,4205.7,14.6184]
[1758646452377,4.436,4205.8,4205.7,14.6184]
[1758646452963,6.81366893,4205.8,4205.7,15.2968]
[1758646453167,6.80366893,4205.8,4205.7,14.6184]
[1758646453959,2.37766893,4205.8,4205.7,14.6184]
[1758646454165,6.80066893,4205.8,4205.7,14.6184]
[1758646457066,8.70109201,4205.8,4205.7,14.5]
[1758646457262,11.81949201,4205.8,4205.7,14.5]
[1758646457669,2.37779366,4205.6,4205.1,0.1184]
[1758646457991,2.37820978,4204.9,4204.8,0.1184]
[1758646458289,5.37823439,4204.8,4204.7,0.004]
[1758646458678,5.49663439,4204.8,4204.7,0.004]
[1758646459593,6.78723439,4204.8,4204.7,0.004]
[1758646459791,9.78723439,4204.8,4204.7,0.004]
[1758646459995,3.0,4204.8,4204.7,2.2512]
[1758646460158,5.37823439,4204.8,4204.7,0.1224]
[1758646460363,3.0,4204.8,4204.7,0.1224]
[1758646460580,3.0,4204.8,4204.7,0.04787022]
[1758646460783,3.0,4204.8,4204.7,0.7968]
[1758646461369,3.0,4204.8,4204.7,3.17509096]
[1758646461663,3.0,4204.8,4204.7,0.7968]
[1758646461991,3.0,4204.8,4204.7,3.17509096]
[1758646462170,3.0,4204.8,4204.7,0.7968]
[1758646462370,9.78323439,4204.8,4204.7,0.1184]
[1758646462576,3.0,4204.8,4204.7,0.6784]
[1758646462772,3.0,4204.7,4204.1,1e-08]
[1758646462994,2.3785738,4204.2,4204.1,1e-08]
[1758646463198,9.82834202,4204.2,4204.1,1e-08]
[1758646463495,6.0611738,4204.2,4204.1,1e-08]
[1758646463709,11.8605738,4204.2,4204.1,1e-08]
[1758646464435,3.0,4204.2,4204.1,1e-08]
[1758646464719,4.425,4204.5,4204.1,0.67840001]
[1758646464919,3.0,4204.3,4204.1,0.22960001]
[1758646465719,3.0,4204.3,4204.2,14.5]
[1758646466431,3.0,4204.3,4204.2,15.1784]
[1758646466607,4.416,4204.5,4204.2,15.1784]
[1758646466808,3.0,4204.4,4204.3,0.2296]
[1758646467206,5.37850479,4204.4,4204.2,14.5]
[1758646467561,3.0,4204.4,4204.2,14.5]
[1758646468038,0.6826,4205.7,4204.3,0.70218517]
[1758646468241,9.49176822,4205.6,4204.3,0.70218517]
[1758646468426,2.37824547,4204.8,4204.3,0.70218517]
[1758646468625,3.0,4204.6,4204.3,0.70218517]
[1758646469370,3.0,4204.6,4204.4,0.6784]
[1758646469571,3.0,4204.6,4204.1,1e-08]
[1758646469572,4.407,4204.7,4204.6,2.37834752]
[1758646469728,4.407,4204.7,4204.6,0.6784]
[1758646470078,4.405,4205.0,4204.7,2.37825154]
[1758646470230,3.0,4205.0,4204.7,0.2296]
[1758646470533,3.0,4205.0,4204.6,14.5]
[1758646471161,5.37812776,4205.0,4204.6,14.5]
[1758646471520,3.0,4205.0,4204.6,14.5]
[1758646471721,3.02376822,4205.0,4204.6,14.5]
[1758646471926,2.3785738,4204.2,4204.1,1e-08]
[1758646472138,6.80134202,4204.2,4204.1,1e-08]
[1758646472344,4.403,4204.2,4204.1,1e-08]
[1758646472561,6.7815738,4204.2,4204.1,1e-08]
[1758646472769,10.4676738,4204.2,4204.1,1e-08]
[1758646472929,11.7522879,4204.2,4204.1,1e-08]
[1758646473378,2.37874354,4203.9,4203.8,0.004]
[1758646473658,9.80851176,4203.9,4203.8,0.004]
[1758646473865,10.47084354,4203.9,4203.8,0.004]
[1758646475728,6.06484354,4203.9,4203.8,0.004]
[1758646476061,11.83574354,4203.9,4203.8,0.004]
[1758646476461,5.37874354,4203.9,4203.8,0.004]
[1758646476661,3.0,4203.9,4203.8,0.004]
[1758646476871,2.058,4204.2,4203.8,0.2336]
[1758646477055,4.395,4204.1,4203.9,0.2296]
[1758646477460,4.395,4204.1,4204.0,14.5]
[1758646477643,0.246,4205.0,4204.2,2.37856537]
[1758646477846,9.11640186,4204.9,4204.1,2.40240389]
[1758646478063,3.0,4204.8,4204.2,0.2296]
[1758646478278,0.02376822,4204.7,4204.2,0.2296]
[1758646478445,5.37841289,4204.5,4204.3,14.5]
[1758646478649,2.37841289,4204.5,4204.3,14.5]
[1758646478869,0.246,4205.0,4204.3,14.5]
[1758646478870,9.76946066,4204.4,4204.3,14.5]
[1758646479375,10.95458355,4204.4,4204.3,14.5]
[1758646479747,7.388,4204.4,4204.3,14.5]
[1758646480564,3.0,4204.3,4203.8,0.004]
[1758646480745,0.02376822,4204.3,4204.1,2.37862909]
[1758646480936,3.0,4204.2,4204.1,2.37862909]
[1758646481143,0.02376822,4204.7,4204.1,0.6697]
[1758646481144,4.385,4204.6,4204.1,0.6697]
[1758646481368,3.0,4204.5,4204.3,2.37848968]
[1758646481569,3.0,4204.5,4204.4,14.5]
[1758646482479,5.37840409,4204.5,4204.4,14.5]
[1758646482676,7.25956799,4204.5,4204.4,14.5]
[1758646482882,4.9995639,4204.5,4204.4,14.5]
[1758646483077,4.7617639,4204.5,4204.4,14.5]
[1758646485051,0.02376822,4204.0,4203.8,0.004]
[1758646485468,3.02376822,4204.0,4203.8,0.004]
[1758646485672,4.371,4203.9,4203.8,0.004]
[1758646486644,0.02376822,4204.0,4203.8,0.004]
[1758646486848,3.0,4204.0,4203.8,3.0524619]
[1758646487057,3.0,4204.0,4203.8,0.004]
[1758646487545,4.369,4203.9,4203.8,0.004]
[1758646487751,4.367,4203.9,4203.8,14.504]
[1758646488182,2.37867313,4204.1,4203.8,14.504]
[1758646488476,4.367,4203.9,4203.8,14.504]
[1758646489981,4.367,4203.9,4203.8,14.7309]
[1758646490183,2.37863381,4204.1,4203.8,14.7309]
[1758646490485,6.73569664,4204.0,4203.5,0.004]
[1758646490684,2.37891331,4203.6,4203.5,0.004]
[1758646490994,9.76668153,4203.6,4203.5,0.004]
[1758646491287,10.40991331,4203.6,4203.5,0.004]
[1758646491450,11.89458465,4203.6,4203.5,0.004]
[1758646493409,12.68658465,4203.6,4203.5,0.004]
[1758646493605,2.3791397,4203.2,4202.1,0.02]
[1758646493835,9.76090792,4203.2,4202.2,14.5]
[1758646494129,9.76090792,4203.2,4203.1,1e-08]
[1758646494130,11.1961397,4203.2,4203.1,1e-08]
[1758646494285,2.37964923,4202.3,4202.2,14.5]
[1758646494493,9.48641745,4202.3,4202.2,14.5]
[1758646494780,8.79564923,4202.3,4202.2,14.5]
[1758646494992,2.37964923,4202.3,4202.2,14.5]
[1758646495308,6.73464923,4202.3,4202.2,14.5]
[1758646495605,7.355,4202.3,4202.2,15.1697]
[1758646495808,7.355,4202.3,4202.2,14.7269]
[1758646495972,7.355,4202.3,4202.2,14.5]
[1758646496597,9.73464923,4202.3,4202.2,14.5]
[1758646498836,5.37970586,4202.2,4202.1,0.02]
[1758646499016,6.16510586,4202.2,4202.1,0.02]
[1758646499187,6.95710586,4202.2,4202.1,0.02]
[1758646500594,0.1184,4201.5,4201.4,0.004]
[1758646500925,7.343,4201.5,4201.4,0.004]
[1758646501119,7.4614,4201.5,4201.4,0.004]
[1758646501424,7.342,4201.5,4201.4,0.2309]
[1758646501849,7.342,4201.5,4201.4,0.004]
[1758646502132,9.72210234,4201.5,4201.4,14.504]
[1758646502335,11.14994804,4201.5,4201.4,14.504]
[1758646502540,11.93534804,4201.5,4201.4,0.004]
[1758646502921,11.26834804,4201.5,4201.4,0.004]
[1758646503127,9.83750234,4201.5,4201.4,0.004]
[1758646503719,11.29650234,4201.5,4201.4,0.004]
[1758646504100,11.17810234,4201.5,4201.4,0.004]
[1758646504833,11.17410234,4201.5,4201.4,0.004]
[1758646504996,13.23310234,4201.5,4201.4,0.004]
[1758646505212,14.79441277,4201.5,4201.4,0.004]
[1758646505923,8.40041277,4201.5,4201.4,0.004]
[1758646506121,14.79241277,4201.5,4201.4,0.004]
[1758646506506,14.79041277,4201.5,4201.4,0.004]
[1758646506707,14.79041277,4201.5,4201.3,0.004]
[1758646506708,22.8802002,4201.4,4201.3,1e-08]
[1758646506908,7.93767003,4201.4,4201.3,1e-08]
[1758646507131,14.32567003,4201.4,4201.3,1e-08]
[1758646507914,14.08787003,4201.4,4201.3,1e-08]
[1758646508215,13.65767003,4201.4,4201.3,1e-08]
[1758646508610,13.65667003,4201.4,4201.3,1e-08]
[1758646508816,7.27067003,4201.4,4201.3,1e-08]
[1758646509010,13.65467003,4201.4,4201.3,1e-08]
[1758646509218,14.32167003,4201.4,4201.3,1e-08]
[1758646509429,30.79191124,4201.4,4201.3,1e-08]
[1758646509712,14.32467003,4201.4,4201.3,1e-08]
[1758646510326,3.792,4201.2,4201.1,0.02]
[1758646510528,6.17238562,4201.0,4200.9,1e-08]
[1758646510845,10.49838562,4201.0,4200.9,1e-08]
[1758646511228,11.17238562,4201.0,4200.9,1e-08]
[1758646511549,6.84638562,4201.0,4200.9,1e-08]
[1758646511769,7.5001207,4201.0,4200.9,1e-08]
[1758646512058,13.8831207,4201.0,4200.9,1e-08]
[1758646512215,7.5001207,4201.0,4200.9,1e-08]
[1758646512557,2.3802723,4201.2,4200.9,1e-08]
[1758646512558,2.38027359,4201.2,4200.9,0.67980001]
[1758646512731,3.02376822,4201.1,4201.0,0.6798]
[1758646513060,3.02376822,4201.1,4201.0,15.1798]
[1758646513061,4.325,4201.1,4201.0,15.1798]
[1758646514138,4.325,4201.1,4201.0,15.2982]
[1758646515725,7.318,4201.1,4201.0,14.6184]
[1758646515926,9.69832896,4201.1,4201.0,14.5]
[1758646516145,7.4364,4201.1,4201.0,14.5]
[1758646516420,7.317,4201.1,4201.0,15.1798]
[1758646517060,3.0,4201.1,4201.0,15.1798]
[1758646517261,7.319,4201.1,4201.0,15.1798]
[1758646518064,9.69932896,4201.1,4201.0,15.1798]
[1758646518455,7.319,4201.1,4201.0,15.1798]
[1758646518666,7.319,4201.1,4201.0,14.5]
[1758646518667,9.69932896,4201.1,4201.0,14.5]
[1758646518853,11.46126186,4201.1,4201.0,14.5]
[1758646519161,6.29078562,4201.0,4200.9,1e-08]
[1758646519327,5.49878562,4201.0,4200.9,1e-08]
[1758646519529,9.4914,4201.0,4200.9,1e-08]
[1758646519760,11.87178562,4201.0,4200.9,1e-08]
[1758646521066,11.21458576,4201.0,4200.9,1e-08]
[1758646521255,13.27358576,4201.0,4200.9,1e-08]
[1758646521452,14.06558576,4201.0,4200.9,1e-08]
[1758646522055,14.73958576,4201.0,4200.9,1e-08]
[1758646522258,14.73958576,4201.0,4200.1,0.02]
[1758646522259,3.792,4200.7,4200.1,0.02]
[1758646522568,2.499239,4200.2,4200.1,0.02]
[1758646522773,11.89300722,4200.2,4200.1,0.02]
[1758646523070,11.869239,4200.2,4200.1,0.02]
[1758646525155,9.684839,4200.2,4200.1,0.2627]
[1758646525370,11.744839,4200.2,4200.1,0.024]
[1758646525540,13.16923562,4200.2,4200.1,0.024]
[1758646525739,14.63523562,4200.2,4200.1,0.024]
[1758646526172,0.792,4199.9,4199.6,0.004]
[1758646526344,6.17312246,4199.7,4199.6,0.004]
[1758646526542,7.4731581,4199.7,4199.6,0.004]
[1758646526749,8.1471581,4199.7,4199.6,0.004]
[1758646528939,8.1471581,4199.7,4199.6,0.004]
[1758646529552,3.17334927,4199.3,4199.2,0.004]
[1758646529747,12.55411749,4199.3,4199.2,0.004]
[1758646529947,13.20434927,4199.3,4199.2,0.004]
[1758646530147,14.48767636,4199.3,4199.2,0.004]
[1758646530551,3.17346269,4199.1,4198.1,0.1384]
[1758646530781,2.38197322,4198.2,4198.1,0.02]
[1758646531082,4.293,4198.2,4198.1,0.02]
[1758646531281,6.69874144,4198.2,4198.1,0.02]
[1758646531572,4.293,4198.2,4198.1,0.02]
[1758646531775,6.69874144,4198.2,4198.1,0.02]
[1758646532005,6.67497322,4198.2,4198.1,0.02]
[1758646532206,11.39605745,4198.2,4198.1,0.02]
[1758646532483,4.72108423,4198.2,4198.1,0.02]
[1758646532638,6.17397322,4198.2,4198.1,0.02]
[1758646532837,12.52497322,4198.2,4198.1,0.02]
[1758646533068,8.083,4198.2,4198.1,0.02]
[1758646533238,6.17397322,4198.2,4198.1,0.02]
[1758646533442,7.29,4198.2,4198.1,0.6998]
[1758646533756,8.082,4198.2,4198.1,0.02]
[1758646534167,10.46397322,4198.2,4198.1,0.02]
[1758646535443,6.17397322,4198.2,4198.1,0.02]
[1758646535665,12.52597322,4198.2,4198.1,0.02]
[1758646535861,3.792,4198.2,4198.1,0.02]
[1758646536144,3.792,4198.2,4198.1,0.6998]
[1758646536145,7.289,4198.2,4198.1,0.6998]
[1758646536342,7.29,4198.2,4198.1,0.6998]
[1758646536567,3.0,4198.2,4198.1,0.6998]
[1758646536776,2.06,4198.9,4198.2,2.38197322]
[1758646536986,4.31276822,4198.8,4198.3,3.06168856]
[1758646537279,4.31276822,4198.8,4198.4,1.2261715]
[1758646537448,0.02376822,4199.3,4198.5,0.70361803]
[1758646537656,4.288,4199.4,4199.0,2.38151186]
[1758646537853,3.02376822,4199.3,4199.1,0.6798]
[1758646538072,7.289,4199.2,4199.1,3.06126269]
[1758646538377,7.287,4199.2,4199.1,0.6798]
[1758646538895,7.287,4199.2,4199.1,3.06126269]
[1758646539259,3.0,4199.1,4198.8,2.38162445]
[1758646539447,3.0,4198.9,4198.2,2.38197322]
[1758646539647,4.287,4198.9,4198.3,0.24019732]
[1758646539846,4.287,4198.9,4198.8,2.38163284]
[1758646540047,4.287,4198.9,4198.8,3.06143284]
[1758646540248,7.283,4199.1,4199.0,2.38151405]
[1758646540448,7.283,4199.1,4199.0,3.06131405]
[1758646540876,3.0,4199.1,4199.0,3.06131405]
[1758646541077,2.06,4199.9,4199.4,2.3812713]
[1758646541382,0.02376822,4199.8,4199.5,0.6914]
[1758646541587,3.0,4199.7,4199.6,0.2416]
[1758646541769,3.02376822,4199.7,4199.6,0.2416]
[1758646543700,2.06,4200.2,4199.6,0.2416]
[1758646543701,3.0,4200.3,4199.6,3.07257588]
[1758646544002,4.274,4200.2,4199.7,0.71521122]
[1758646544302,3.0,4200.1,4199.8,0.6914]
[1758646544498,2.38083492,4200.3,4199.9,0.6914]
[1758646544702,0.02376822,4200.8,4200.0,0.6914]
[1758646544906,6.333,4200.7,4199.8,0.2416]
[1758646545108,2.38098109,4200.0,4199.8,0.2416]
[1758646545289,6.65298109,4200.0,4199.8,0.2416]
[1758646545484,9.65298109,4200.0,4199.9,0.6914]
[1758646546072,7.272,4200.0,4199.9,0.6914]
[1758646546273,9.65295238,4200.0,4199.9,0.6914]
[1758646546702,9.65295238,4200.0,4199.4,0.2416]
[1758646546703,2.38123586,4199.5,4199.4,0.2416]
[1758646546907,3.0,4199.4,4199.1,0.2416]
[1758646547106,0.02376822,4199.3,4199.1,0.2416]
[1758646547273,7.268,4199.2,4199.1,0.2416]
[1758646547692,7.268,4199.2,4199.1,3.07286269]
[1758646548023,7.268,4199.2,4199.0,2.49991347]
[1758646548384,7.268,4199.2,4199.0,0.1184]
[1758646548574,7.268,4199.2,4199.0,2.49991844]
[1758646548773,7.268,4199.2,4199.0,2.74151844]
[1758646549088,7.268,4199.2,4199.0,0.36]
[1758646549998,7.268,4199.2,4199.0,2.74150929]
[1758646550173,7.268,4199.2,4199.0,0.36]
[1758646550675,3.0,4199.2,4199.0,0.1184]
[1758646550876,3.0,4199.2,4199.1,0.2416]
[1758646551200,7.259,4199.2,4199.1,0.2416]
[1758646551398,3.0,4199.1,4198.3,0.4498]
[1758646551571,4.28276822,4199.0,4198.4,0.1184]
[1758646551772,0.14216822,4199.1,4198.4,0.38381859]
[1758646551978,4.258,4199.0,4198.7,0.1184]
[1758646552186,4.259,4198.9,4198.7,0.1184]
[1758646552582,2.38181294,4198.5,4198.1,0.024]
[1758646552776,4.28176822,4198.4,4198.1,0.024]
[1758646552976,4.258,4198.3,4198.1,0.024]
[1758646553172,0.02376822,4198.2,4198.1,0.024]
[1758646553381,4.258,4198.2,4198.1,3.09742996]
[1758646553712,3.0,4198.4,4198.1,3.64533656]
[1758646553894,3.0,4198.4,4198.2,0.2416]
[1758646554101,0.4653,4199.8,4198.3,0.6914]
[1758646554302,0.02376822,4199.7,4199.0,2.38147184]
[1758646554609,6.64219548,4199.6,4199.1,0.2416]
[1758646554905,3.02376822,4199.5,4199.1,0.2416]
[1758646555306,3.0,4199.3,4199.1,0.2416]
[1758646555515,3.02376822,4199.3,4198.9,0.4498]
[1758646555698,3.02376822,4199.3,4198.7,0.2416]
[1758646555897,3.0,4199.1,4198.8,2.38163284]
[1758646556100,3.0,4199.1,4198.9,2.6231292]
[1758646556303,3.02376822,4199.1,4198.6,2.38174565]
[1758646556504,4.261,4199.0,4198.9,2.38157161]
[1758646556697,7.261,4199.0,4198.9,2.62317161]
[1758646556903,7.262,4199.0,4198.9,2.62317161]
[1758646557412,7.1429,4199.0,4198.9,0.2416]
[1758646557580,2.8809,4199.0,4198.8,2.38161405]
[1758646557785,2.8809,4199.0,4198.9,2.62317612]
[1758646558114,7.1409,4199.0,4198.9,3.07297612]
[1758646558619,7.1409,4199.0,4198.9,0.2416]
[1758646559183,7.1409,4199.0,4198.5,2.38175043]
[1758646559382,7.1409,4199.0,4198.6,3.07313321]
[1758646559383,0.02376822,4198.9,4198.6,3.07313321]
[1758646559605,3.02376822,4198.9,4198.2,0.4498]
[1758646559913,2.3817392,4198.7,4198.1,0.024]
[1758646560085,3.0,4198.5,4198.1,0.024]
[1758646560285,3.0,4198.3,4198.1,0.024]
[1758646560481,2.40574144,4198.2,4198.1,0.024]
[1758646560814,7.37108383,4198.2,4198.1,0.024]
[1758646561113,7.34731561,4198.2,4198.1,0.024]
[1758646562384,11.60431561,4198.2,4198.1,0.024]
[1758646564705,13.86913764,4198.2,4198.1,0.024]
[1758646565996,14.66113764,4198.2,4198.1,0.024]
[1758646566204,6.17402996,4198.1,4197.6,0.004]
[1758646566404,6.17425695,4197.7,4197.6,0.004]
[1758646566718,8.27959247,4197.7,4197.6,0.004]
[1758646566918,10.56709247,4197.7,4197.6,0.004]
[1758646567093,14.58659247,4197.7,4197.6,0.004]
[1758646567292,6.17425695,4197.7,4197.6,0.004]
[1758646567625,12.48125695,4197.7,4197.6,0.004]
[1758646567792,3.792,4197.7,4197.6,0.004]
[1758646568119,9.32976822,4197.7,4197.6,0.004]
[1758646568324,11.68825695,4197.7,4197.6,0.004]
[1758646568526,13.88729707,4197.7,4197.6,0.004]
[1758646568728,14.57909707,4197.7,4197.6,0.004]
[1758646570298,13.88729707,4197.7,4197.6,0.004]
[1758646570504,7.58129707,4197.7,4197.6,0.004]
[1758646570830,6.17425695,4197.7,4197.6,0.004]
[1758646571127,12.47425695,4197.7,4197.6,0.004]
[1758646572006,12.93645695,4197.7,4197.6,0.004]
[1758646572210,13.17835695,4197.7,4197.6,0.004]
[1758646574035,6.87835695,4197.7,4197.6,0.004]
[1758646574241,15.61519455,4197.7,4197.6,0.004]
[1758646575325,14.91109455,4197.7,4197.6,0.004]
[1758646575636,10.67809455,4197.7,4197.6,0.004]
[1758646575838,6.17425695,4197.7,4197.6,0.004]
[1758646576044,12.46525695,4197.7,4197.6,0.004]
[1758646576728,3.0,4197.7,4197.6,0.004]
[1758646577039,0.1184,4197.7,4197.6,0.004]
[1758646577216,4.3464,4197.7,4197.6,0.004]
[1758646577424,4.37016822,4197.7,4197.6,0.6766]
[1758646577607,7.37016822,4197.7,4197.6,0.6766]
[1758646577808,5.50065695,4197.7,4197.6,0.004]
[1758646578011,7.228,4197.7,4197.6,0.004]
[1758646578449,9.61025695,4197.7,4197.6,0.004]
[1758646578741,10.80949805,4197.7,4197.6,0.004]
[1758646578928,8.07759805,4197.7,4197.6,0.004]
[1758646579135,13.68049805,4197.7,4197.6,0.004]
[1758646580020,14.38459805,4197.7,4197.6,0.004]
[1758646580220,7.37349805,4197.7,4197.6,0.004]
[1758646580422,3.0,4197.7,4197.6,0.004]
[1758646580638,7.245,4197.7,4197.6,0.6766]
[1758646580836,9.62725695,4197.7,4197.6,0.6766]
[1758646581313,9.62725695,4197.7,4197.6,0.004]
[1758646583118,7.242,4197.7,4197.6,0.6766]
[1758646583335,3.0,4197.7,4197.6,0.6766]
[1758646583545,7.241,4197.7,4197.6,0.6766]
[1758646583971,9.62325695,4197.7,4197.6,0.004]
[1758646584944,7.241,4197.7,4197.6,0.004]
[1758646585146,9.62325695,4197.7,4197.6,0.2326]
[1758646585745,0.001,4198.1,4197.6,0.6766]
[1758646585919,4.239,4198.1,4197.7,0.6726]
[1758646586115,0.02376822,4198.0,4197.8,0.6726]
[1758646586316,4.238,4197.9,4197.6,0.004]
[1758646586618,0.001,4198.1,4198.0,2.3820867]
[1758646586840,0.001,4198.1,4198.0,15.1726]
[1758646587025,0.001,4198.1,4198.0,17.5546867]
[1758646587225,0.001,4198.1,4198.0,19.54838087]
[1758646588260,0.001,4198.1,4198.0,20.34038087]
[1758646589028,0.001,4198.1,4198.0,20.45878087]
[1758646591239,0.001,4198.1,4198.0,23.45878087]
[1758646591646,0.001,4198.1,4198.0,27.69278087]
[1758646593834,0.02,4199.9,4199.8,2.38106576]